bitfinex-derivatives/quotes_SOLF0:USTF0_20250530
["timestamp","ask_amount","ask_price","bid_price","bid_amount"]
[1748594688067,0.04412208,163.3,163.26,0.03881259]
[1748594689864,6.1223,163.27,163.26,0.03881259]
[1748594690058,0.04412208,163.3,163.26,0.03881259]
[1748594690875,6.16542208,163.3,163.27,6.1223]
[1748594691262,0.04412208,163.3,163.26,0.03881259]
[1748594691467,0.04412208,163.3,163.26,6.16141259]
[1748594691666,0.04412208,163.3,163.26,0.03881259]
[1748594693468,6.1217,163.29,163.26,0.03881259]
[1748594694472,6.1217,163.29,163.26,6.16141259]
[1748594695173,0.04412208,163.3,163.26,0.03881259]
[1748594695677,0.04412208,163.3,163.28,6.1217]
[1748594696172,0.04412208,163.3,163.26,0.03881259]
[1748594697075,0.04412208,163.3,163.29,6.1216]
[1748594697276,0.04412208,163.3,163.29,38.3016]
[1748594697669,0.04412208,163.3,163.29,32.18]
[1748594698072,6.16532208,163.3,163.29,32.18]
[1748594698370,6.16532208,163.3,163.27,6.1223]
[1748594700178,0.04412208,163.3,163.28,6.122]
[1748594700479,0.04412208,163.3,163.26,32.21881259]
[1748594700674,6.1223,163.27,163.26,32.21881259]
[1748594700972,6.1223,163.27,163.26,0.03881259]
[1748594701474,6.1221,163.28,163.26,0.03881259]
[1748594701671,0.04412208,163.3,163.26,0.03881259]
[1748594701877,0.04412208,163.3,163.26,6.16131259]
[1748594702673,0.04412208,163.3,163.26,0.03881259]
[1748594704174,6.1219,163.29,163.26,0.03881259]
[1748594704577,0.04412208,163.3,163.26,0.03881259]
[1748594704777,6.122,163.28,163.26,0.03881259]
[1748594705068,0.04412208,163.3,163.26,0.03881259]
[1748594705982,6.1223,163.27,163.26,0.03881259]
[1748594711086,6.1221,163.28,163.26,0.03881259]
[1748594711280,0.04412208,163.3,163.26,0.03881259]
[1748594712083,6.1223,163.28,163.26,0.03881259]
[1748594713191,0.04412208,163.3,163.26,0.03881259]
[1748594713490,0.04412208,163.3,163.27,32.16]
[1748594714086,0.04412208,163.3,163.29,6.1216]
[1748594714992,0.04412208,163.3,163.28,6.1218]
[1748594715189,0.04412208,163.3,163.27,32.16]
[1748594717486,0.04412208,163.3,163.27,38.282]
[1748594718191,0.04412208,163.3,163.27,32.16]
[1748594718986,6.1217,163.29,163.27,32.16]
[1748594719292,0.04412208,163.3,163.27,32.16]
[1748594720293,6.16532208,163.3,163.27,32.16]
[1748594720692,6.16532208,163.3,163.27,38.2821]
[1748594720890,0.04412208,163.3,163.27,32.16]
[1748594721088,0.04412208,163.3,163.27,38.2821]
[1748594721597,6.16552208,163.3,163.27,38.2821]
[1748594721986,0.04412208,163.3,163.27,32.16]
[1748594722691,0.04412208,163.3,163.28,6.1217]
[1748594722892,0.04412208,163.3,163.27,32.16]
[1748594723586,0.04412208,163.3,163.29,6.1216]
[1748594724183,36.3115,163.37,163.31,6.1206]
[1748594724390,36.3115,163.37,163.27,32.16]
[1748594724391,36.3115,163.37,163.28,6.7650205]
[1748594724582,4.1515,163.37,163.28,129.6971205]
[1748594724791,6.1192,163.36,163.32,6.1202]
[1748594725191,0.04357141,163.36,163.32,0.03999119]
[1748594725392,0.04357141,163.36,163.34,6.1197]
[1748594726187,0.04357141,163.36,163.35,32.14]
[1748594726393,1.9912,163.43,163.35,32.14]
[1748594726786,6.1174,163.41,163.35,32.14]
[1748594726990,1.9912,163.43,163.35,32.14]
[1748594727187,32.14,163.45,163.35,38.9050205]
[1748594727495,0.0409798,163.41,163.37,0.04368319]
[1748594727688,0.0409798,163.41,163.38,6.1182]
[1748594728390,6.1581798,163.41,163.37,6.16218319]
[1748594729294,6.1175,163.4,163.37,6.16218319]
[1748594729495,0.0409798,163.41,163.37,0.04368319]
[1748594729792,6.1181,163.39,163.37,0.04368319]
[1748594731094,6.1182,163.38,163.37,0.04368319]
[1748594743103,32.1409798,163.41,163.37,0.04368319]
[1748594743306,0.0409798,163.41,163.37,0.04368319]
[1748594743706,6.1580798,163.41,163.37,0.04368319]
[1748594743907,0.0409798,163.41,163.37,0.04368319]
[1748594744302,0.0409798,163.41,163.37,120.92368319]
[1748594746004,6.1581798,163.41,163.38,6.118]
[1748594746604,6.1581798,163.41,163.37,127.04218319]
[1748594746802,6.1176,163.4,163.37,127.04218319]
[1748594747006,0.0409798,163.41,163.37,120.92368319]
[1748594747703,0.0409798,163.41,163.38,6.118]
[1748594747909,0.0409798,163.41,163.37,120.92368319]
[1748594749011,6.1177,163.4,163.37,127.04218319]
[1748594749309,0.0409798,163.41,163.37,120.92368319]
[1748594750210,6.1175,163.4,163.37,127.04208319]
[1748594750909,0.0409798,163.41,163.37,120.92368319]
[1748594751516,6.1177,163.4,163.37,127.04228319]
[1748594752215,6.1177,163.4,163.38,6.1182]
[1748594752414,6.1177,163.4,163.37,120.92368319]
[1748594753010,6.1177,163.4,163.37,127.04218319]
[1748594754116,6.1179,163.39,163.37,120.92368319]
[1748594754512,6.1176,163.4,163.37,127.04218319]
[1748594755620,6.1176,163.4,163.37,6.16218319]
[1748594756318,6.1582798,163.41,163.38,6.1182]
[1748594758217,0.0409798,163.41,163.39,6.1176]
[1748594758616,0.0409798,163.41,163.37,0.04368319]
[1748594758817,0.0409798,163.41,163.39,6.1178]
[1748594760418,0.0409798,163.41,163.4,6.1175]
[1748594760926,0.0409798,163.41,163.37,0.04368319]
[1748594761415,6.1177,163.4,163.37,6.16208319]
[1748594761620,0.0409798,163.41,163.37,0.04368319]
[1748594762022,6.1582798,163.41,163.37,0.04368319]
[1748594762214,0.0409798,163.41,163.37,0.04368319]
[1748594762416,6.1154,163.46,163.43,6.1161]
[1748594763420,6.15736149,163.46,163.43,6.15887667]
[1748594763616,6.15736149,163.46,163.43,0.04277667]
[1748594764025,6.1157,163.45,163.43,0.04277667]
[1748594764830,0.04196149,163.46,163.43,0.04277667]
[1748594765326,6.15736149,163.46,163.43,6.15897667]
[1748594766327,6.15736149,163.46,163.43,0.04277667]
[1748594766827,6.15736149,163.46,163.43,6.15917667]
[1748594767422,349.0,163.58,163.43,120.82277667]
[1748594767628,6.1129,163.53,163.45,6.7650205]
[1748594767828,3.9912,163.58,163.46,34.0013]
[1748594768123,6.1117,163.56,163.51,6.1133]
[1748594768532,0.04536077,163.55,163.52,0.04647925]
[1748594769129,6.15726077,163.55,163.52,6.15947925]
[1748594769433,0.04536077,163.55,163.52,0.04647925]
[1748594769629,0.04536077,163.55,163.52,6.15937925]
[1748594772430,0.04536077,163.55,163.54,6.1123]
[1748594772634,6.2628,163.66,163.54,38.7850205]
[1748594773238,6.1095,163.62,163.54,38.7850205]
[1748594773434,6.2628,163.66,163.54,38.7850205]
[1748594773639,0.04599954,163.62,163.58,0.04280479]
[1748594773845,0.04599954,163.62,163.58,32.06280479]
[1748594774234,0.04599954,163.62,163.59,6.1101]
[1748594774436,0.04599954,163.62,163.58,32.06280479]
[1748594774838,0.04599954,163.62,163.6,6.1097]
[1748594775236,0.04599954,163.62,163.58,32.06280479]
[1748594775440,0.04599954,163.62,163.61,6.1096]
[1748594775938,0.04599954,163.62,163.6,6.1097]
[1748594776338,0.04599954,163.62,163.58,32.06280479]
[1748594776739,0.04599954,163.62,163.58,0.04280479]
[1748594776936,6.81102004,163.62,163.58,0.04280479]
[1748594777541,6.1104,163.59,163.58,0.04280479]
[1748594778139,6.1121,163.55,163.53,32.02]
[1748594778640,6.7650205,163.62,163.53,32.02]
[1748594778843,6.1108,163.58,163.53,32.02]
[1748594779046,6.1108,163.58,163.5,6.7650205]
[1748594779047,38.7850205,163.6,163.5,32.02]
[1748594779247,0.04499375,163.57,163.53,0.04512534]
[1748594780244,6.1123,163.54,163.53,0.04512534]
[1748594782443,0.04499375,163.57,163.53,0.04512534]
[1748594782750,0.04499375,163.57,163.54,32.02]
[1748594782950,0.04499375,163.57,163.54,38.1319]
[1748594783637,0.04499375,163.57,163.55,6.1117]
[1748594785844,0.04499375,163.57,163.56,6.1115]
[1748594786053,0.04499375,163.57,163.54,32.02]
[1748594787249,0.04499375,163.57,163.55,6.1116]
[1748594787652,0.04499375,163.57,163.54,32.02]
[1748594787955,0.04499375,163.57,163.54,38.132]
[1748594793055,0.04499375,163.57,163.54,32.02]
[1748594793659,0.04499375,163.57,163.55,6.1116]
[1748594794256,0.04499375,163.57,163.56,6.1115]
[1748594795356,0.04499375,163.57,163.55,6.1118]
[1748594795964,0.04499375,163.57,163.56,6.1115]
[1748594796363,0.04499375,163.57,163.54,32.02]
[1748594797062,0.04499375,163.57,163.53,0.04512534]
[1748594797259,0.04499375,163.57,163.53,32.00512534]
[1748594798262,44.1678,163.77,163.56,6.7650205]
[1748594798464,6.1329,163.72,163.6,6.7650205]
[1748594798661,31.96,163.77,163.63,6.7650205]
[1748594798862,1.9324,163.76,163.66,6.7650205]
[1748594799058,31.96,163.81,163.67,31.96]
[1748594799263,0.04534412,163.76,163.73,6.1051]
[1748594799463,0.04534412,163.76,163.73,0.04488115]
[1748594799966,0.04534412,163.76,163.73,6.14988115]
[1748594800569,0.04534412,163.76,163.73,0.04488115]
[1748594801062,6.1044,163.75,163.73,0.04488115]
[1748594801461,0.04534412,163.76,163.73,0.04488115]
[1748594802067,6.1044,163.75,163.73,0.04488115]
[1748594802263,0.04534412,163.76,163.73,0.04488115]
[1748594803270,6.1048,163.74,163.73,0.04488115]
[1748594816974,0.04534412,163.76,163.73,0.04488115]
[1748594817679,6.14944412,163.76,163.73,0.04488115]
[1748594817882,0.04534412,163.76,163.73,0.04488115]
[1748594818178,0.04534412,163.76,163.73,6.15008115]
[1748594818375,0.04534412,163.76,163.73,0.04488115]
[1748594818582,0.04534412,163.76,163.73,4.10578115]
[1748594818771,0.04534412,163.76,163.74,6.1046]
[1748594820486,0.04534412,163.76,163.73,4.10578115]
[1748594820487,0.04534412,163.76,163.75,6.1044]
[1748594821184,6.1036,163.78,163.74,6.1047]
[1748594821389,4.2005,163.82,163.73,4.0609]
[1748594821783,6.1039,163.77,163.73,4.0609]
[1748594821983,4.2005,163.82,163.73,4.0609]
[1748594822189,0.04286458,163.79,163.76,0.04091206]
[1748594822491,6.1037,163.77,163.76,31.98091206]
[1748594823490,6.1035,163.78,163.76,31.98091206]
[1748594824184,6.14596458,163.79,163.76,31.98091206]
[1748594824392,0.04286458,163.79,163.76,31.98091206]
[1748594826190,6.1037,163.77,163.76,31.98091206]
[1748594827891,6.1037,163.77,163.76,0.04091206]
[1748594829797,6.1044,163.75,163.74,31.9]
[1748594835206,6.1048,163.74,163.73,0.03968652]
[1748594841411,0.04362484,163.75,163.69,31.9]
[1748594841610,6.70608807,163.74,163.62,2.0116]
[1748594841808,6.70608807,163.71,163.65,31.9]
[1748594842002,6.1081,163.66,163.65,31.9]
[1748594842312,6.70608807,163.71,163.65,31.9]
[1748594842504,0.04017342,163.67,163.65,31.9]
[1748594843711,6.1078,163.66,163.65,31.9]
[1748594844210,6.1082,163.65,163.64,0.0455492]
[1748594846213,0.04017342,163.67,163.64,0.0455492]
[1748594847916,6.14787342,163.67,163.64,0.0455492]
[1748594849718,6.1082,163.65,163.64,0.0455492]
[1748594849915,0.04017342,163.67,163.64,0.0455492]
[1748594850418,0.04017342,163.67,163.65,6.1081]
[1748594850917,0.04017342,163.67,163.64,0.0455492]
[1748594851413,0.04017342,163.67,163.65,6.1082]
[1748594851616,0.04017342,163.67,163.64,0.0455492]
[1748594852011,0.04017342,163.67,163.65,31.92]
[1748594852213,0.04017342,163.67,163.66,6.1078]
[1748594854124,0.04017342,163.67,163.65,31.92]
[1748594854125,6.14767342,163.67,163.65,31.92]
[1748594854417,0.04017342,163.67,163.64,0.0455492]
[1748594854818,6.74626149,163.67,163.64,0.0455492]
[1748594855016,6.1082,163.65,163.64,0.0455492]
[1748594859123,0.04017342,163.67,163.64,0.0455492]
[1748594859326,0.04017342,163.67,163.64,6.1540492]
[1748594859529,0.04017342,163.67,163.64,0.0455492]
[1748594859821,0.04017342,163.67,163.65,6.1079]
[1748594860616,6.14787342,163.67,163.64,6.1539492]
[1748594860815,0.04017342,163.67,163.64,0.0455492]
[1748594861222,6.1082,163.65,163.64,0.0455492]
[1748594862627,0.04017342,163.67,163.64,0.0455492]
[1748594863123,6.14777342,163.67,163.64,38.2137492]
[1748594863329,6.14777342,163.67,163.64,32.1055492]
[1748594863629,0.04017342,163.67,163.64,32.1055492]
[1748594864324,0.04017342,163.67,163.65,6.1079]
[1748594865224,6.14767342,163.67,163.64,38.2139492]
[1748594865622,6.14767342,163.67,163.64,32.1055492]
[1748594865929,0.04017342,163.67,163.65,6.1079]
[1748594867333,0.04017342,163.67,163.66,6.1078]
[1748594868337,6.1512,163.73,163.64,32.1055492]
[1748594868935,6.106,163.71,163.68,6.1068]
[1748594869233,0.04199266,163.71,163.68,0.0391463]
[1748594869435,0.04199266,163.71,163.69,6.1067]
[1748594869632,0.04199266,163.71,163.68,0.0391463]
[1748594870834,6.1064,163.7,163.68,6.1460463]
[1748594872331,6.1067,163.69,163.68,0.0391463]
[1748594872527,0.04199266,163.71,163.68,0.0391463]
[1748594873336,6.1063,163.7,163.68,0.0391463]
[1748594873834,6.1063,163.7,163.68,6.1460463]
[1748594875740,6.14809266,163.71,163.68,6.1460463]
[1748594876131,0.04199266,163.71,163.68,6.1460463]
[1748594876532,6.14809266,163.71,163.68,6.1460463]
[1748594877240,6.1063,163.7,163.68,6.1460463]
[1748594877432,38.76608807,163.85,163.69,32.06]
[1748594877634,2.016,163.84,163.7,8.80598807]
[1748594877829,6.1022,163.82,163.7,8.80598807]
[1748594878238,2.016,163.84,163.7,8.80598807]
[1748594878438,0.04155764,163.79,163.77,6.1034]
[1748594878742,0.04155764,163.79,163.77,38.1634]
[1748594879532,0.04155764,163.79,163.78,6.1033]
[1748594880239,0.04155764,163.79,163.77,38.1635]
[1748594880435,0.04155764,163.79,163.77,32.06]
[1748594881733,0.04155764,163.79,163.77,38.1637]
[1748594881928,0.04155764,163.79,163.77,32.06]
[1748594882334,0.04155764,163.79,163.77,38.1635]
[1748594883336,0.04155764,163.79,163.77,32.06]
[1748594883742,0.04155764,163.79,163.78,6.1033]
[1748594886744,6.1037,163.77,163.76,0.04553535]
[1748594888546,0.04155764,163.79,163.76,0.04553535]
[1748594889147,0.04155764,163.79,163.77,6.1035]
[1748594889342,0.04155764,163.79,163.76,0.04553535]
[1748594889549,0.04155764,163.79,163.76,6.14923535]
[1748594890948,0.04155764,163.79,163.77,6.1036]
[1748594893142,0.04155764,163.79,163.76,0.04553535]
[1748594893751,6.14475764,163.79,163.76,6.14933535]
[1748594893948,0.04155764,163.79,163.76,0.04553535]
[1748594894450,6.1036,163.78,163.76,0.04553535]
[1748594894850,0.04155764,163.79,163.76,0.04553535]
[1748594895954,6.1037,163.77,163.76,0.04553535]
[1748594898256,1.9502,163.78,163.72,31.9]
[1748594898257,6.1052,163.73,163.72,31.9]
[1748594898461,8.65628807,163.78,163.69,31.9]
[1748594898759,8.65628807,163.78,163.66,529.604]
[1748594898952,6.70608807,163.75,163.67,31.9]
[1748594899152,2.058,163.74,163.67,31.9]
[1748594899353,0.04591077,163.72,163.69,0.0389134]
[1748594899554,6.1063,163.7,163.69,0.0389134]
[1748594906155,0.04591077,163.72,163.69,0.0389134]
[1748594906663,6.15151077,163.72,163.69,6.1454134]
[1748594906855,0.04591077,163.72,163.69,6.1454134]
[1748594907057,0.04591077,163.72,163.69,0.0389134]
[1748594907357,6.1062,163.71,163.69,0.0389134]
[1748594907550,0.04591077,163.72,163.69,0.0389134]
[1748594907955,6.1063,163.7,163.69,0.0389134]
[1748594911953,6.1081,163.66,163.62,2.1384]
[1748594912157,6.1081,163.66,163.65,31.9]
[1748594913872,0.04282365,163.67,163.65,31.9]
[1748594914677,6.1078,163.66,163.65,31.9]
[1748594914870,0.04282365,163.67,163.65,31.9]
[1748594915276,6.15042365,163.67,163.65,31.9]
[1748594915569,0.04282365,163.67,163.65,31.9]
[1748594915774,6.15032365,163.67,163.65,31.9]
[1748594916871,0.04282365,163.67,163.65,31.9]
[1748594917565,0.04282365,163.67,163.65,38.008]
[1748594918571,0.04282365,163.67,163.66,6.1078]
[1748594919877,0.04282365,163.67,163.65,31.9]
[1748594920276,0.04282365,163.67,163.66,6.1078]
[1748594920475,2.0975,163.74,163.65,31.9]
[1748594920874,2.0975,163.74,163.68,6.107]
[1748594921270,6.1065,163.7,163.67,6.1073]
[1748594921476,6.15167718,163.7,163.67,6.14946904]
[1748594922576,0.04517718,163.7,163.69,6.1067]
[1748594922876,8.69558807,163.79,163.69,31.9]
[1748594923081,6.1051,163.74,163.71,6.1057]
[1748594923279,8.69558807,163.79,163.69,31.9]
[1748594923573,34.0055,163.81,163.69,31.9]
[1748594923574,2.1055,163.81,163.69,31.9]
[1748594923774,6.14560854,163.77,163.74,6.1046]
[1748594923973,6.14560854,163.77,163.74,38.0046]
[1748594924371,0.04160854,163.77,163.74,31.9]
[1748594924566,0.04160854,163.77,163.75,6.1041]
[1748594925381,0.04160854,163.77,163.76,6.1041]
[1748594926278,0.04160854,163.77,163.74,31.9]
[1748594926279,6.14550854,163.77,163.74,31.9]
[1748594926783,6.1041,163.76,163.74,31.9]
[1748594927280,0.04160854,163.77,163.74,31.9]
[1748594927982,6.1041,163.76,163.74,31.9]
[1748594928980,0.04160854,163.77,163.73,0.04001273]
[1748594930278,6.1041,163.76,163.73,0.04001273]
[1748594930677,0.04160854,163.77,163.73,0.04001273]
[1748594930879,6.1048,163.74,163.73,0.04001273]
[1748594931177,0.04160854,163.77,163.73,0.04001273]
[1748594931781,6.14550854,163.77,163.74,6.1046]
[1748594932678,0.04160854,163.77,163.73,0.04001273]
[1748594933181,6.1044,163.76,163.73,6.14491273]
[1748594933381,0.04160854,163.77,163.73,0.04001273]
[1748594933782,6.1043,163.76,163.73,6.14501273]
[1748594934184,0.04160854,163.77,163.73,0.04001273]
[1748594934493,6.14550854,163.77,163.74,6.1048]
[1748594935291,6.1042,163.76,163.73,6.14511273]
[1748594935786,6.1042,163.76,163.73,6.14501273]
[1748594936286,6.1042,163.76,163.74,6.1048]
[1748594936484,0.04160854,163.77,163.75,31.9]
[1748594936880,0.04160854,163.77,163.75,38.0043]
[1748594937387,0.04160854,163.77,163.76,6.1041]
[1748594937989,0.04160854,163.77,163.75,31.9]
[1748594938787,0.04160854,163.77,163.76,6.1041]
[1748594939190,0.04160854,163.77,163.75,38.0043]
[1748594939490,0.04160854,163.77,163.75,31.9]
[1748594939796,6.1041,163.76,163.75,31.9]
[1748594940089,0.04160854,163.77,163.75,31.9]
[1748594940485,0.04160854,163.77,163.76,6.1041]
[1748594941382,0.04160854,163.77,163.75,31.9]
[1748594942492,0.04160854,163.77,163.76,6.1041]
[1748594944891,6.1027,163.8,163.77,6.1035]
[1748594945190,44.76038807,163.86,163.75,31.9]
[1748594945490,6.1035,163.78,163.75,38.0043]
[1748594945889,6.14731854,163.78,163.75,38.05063461]
[1748594949589,6.14731854,163.78,163.76,6.104]
[1748594950383,6.14731854,163.78,163.75,38.05063461]
[1748594950584,6.1039,163.77,163.75,31.94633461]
[1748594952095,6.14741854,163.78,163.75,38.05073461]
[1748594952300,0.04381854,163.78,163.75,38.05073461]
[1748594952697,0.04381854,163.78,163.75,31.94633461]
[1748594953203,0.04381854,163.78,163.76,6.1038]
[1748594953392,0.04381854,163.78,163.75,31.94633461]
[1748594953793,0.04381854,163.78,163.77,6.1037]
[1748594954688,44.76038807,163.86,163.8,6.1025]
[1748594954887,6.1017,163.83,163.8,6.1025]
[1748594955300,2.0585,163.86,163.81,6.1021]
[1748594955496,2.0585,163.86,163.79,31.88]
[1748594955698,0.03010718,163.84,163.81,0.04426198]
[1748594956198,33.8372,163.92,163.81,0.04426198]
[1748594956398,33.8372,163.92,163.79,158.96608807]
[1748594956789,33.8372,163.92,163.84,6.1009]
[1748594956988,33.8372,163.92,163.84,31.88]
[1748594957300,33.8372,163.92,163.86,0.04271302]
[1748594958299,6.0998,163.88,163.86,0.04271302]
[1748594959202,6.1,163.87,163.86,0.04271302]
[1748594962098,6.1018,163.82,163.81,31.88]
[1748594963398,6.1022,163.81,163.8,0.04659582]
[1748594965402,38.56608807,163.93,163.8,0.04659582]
[1748594965603,38.56608807,163.93,163.79,6.70608807]
[1748594965604,38.56608807,163.93,163.79,10.66208807]
[1748594966005,6.1002,163.87,163.82,6.1015]
[1748594966406,6.1002,163.87,163.83,6.14105902]
[1748594966604,6.1002,163.87,163.83,0.03985902]
[1748594967404,6.0997,163.88,163.83,0.03985902]
[1748594967609,2.0087,163.92,163.84,0.04403511]
[1748594969005,6.1001,163.87,163.84,6.14483511]
[1748594970613,2.0087,163.92,163.84,0.04403511]
[1748594972011,6.1005,163.86,163.84,0.04403511]
[1748594973916,6.1007,163.85,163.84,0.04403511]
[1748594975317,2.0087,163.92,163.84,0.04403511]
[1748594975318,6.1005,163.86,163.84,0.04403511]
[1748594975521,2.0087,163.92,163.84,0.04403511]
[1748594976216,6.1007,163.85,163.84,0.04403511]
[1748594976413,2.0087,163.92,163.84,0.04403511]
[1748594977417,6.1006,163.86,163.84,0.04403511]
[1748594978218,6.1001,163.87,163.84,6.14503511]
[1748594978616,2.0087,163.92,163.84,0.04403511]
[1748594980920,2.0087,163.92,163.84,6.14503511]
[1748594981122,2.0087,163.92,163.84,0.04403511]
[1748594982023,2.0087,163.92,163.84,6.14503511]
[1748594983113,6.1003,163.87,163.84,6.14503511]
[1748594983313,2.0087,163.92,163.84,6.14503511]
[1748594984317,2.0087,163.92,163.84,0.04403511]
[1748594984926,6.0989,163.9,163.87,6.0997]
[1748594985123,6.0989,163.9,163.87,6.14461839]
[1748594985429,6.0986,163.91,163.88,6.0996]
[1748594985816,6.0986,163.91,163.87,0.04491839]
[1748594986222,6.0989,163.9,163.87,6.14471839]
[1748594986728,6.0989,163.9,163.88,6.0995]
[1748594986926,6.0985,163.91,163.88,6.0995]
[1748594987227,2.0195,164.0,163.88,6.70608807]
[1748594987426,6.098,163.93,163.92,0.04330979]
[1748594993027,6.098,163.93,163.92,9.79e-06]
[1748594994431,12.2331,163.93,163.92,9.79e-06]
[1748594994837,44.0731,163.93,163.92,9.79e-06]
[1748594997230,6.1007,163.85,163.84,31.84]
[1748594997436,6.70608807,163.92,163.84,31.84]
[1748594998131,6.1005,163.86,163.84,31.84]
[1748595001928,0.0433098,163.87,163.83,0.04131983]
[1748595002429,6.1011,163.84,163.83,0.04131983]
[1748595005035,0.0433098,163.87,163.83,0.04131983]
[1748595005440,37.9122,163.99,163.85,6.70608807]
[1748595005640,6.098,163.93,163.89,6.099]
[1748595005841,31.84,163.98,163.89,6.099]
[1748595006047,31.84,163.98,163.86,33.9161]
[1748595006237,6.0976,163.94,163.9,6.0987]
[1748595006435,31.84,163.98,163.9,0.04141425]
[1748595006746,6.098,163.93,163.9,0.04141425]
[1748595006935,31.84,163.98,163.9,0.04141425]
[1748595008348,38.54608807,163.98,163.9,0.04141425]
[1748595008744,6.0985,163.91,163.9,0.04141425]
[1748595012044,6.0985,163.91,163.9,1.425e-05]
[1748595013952,6.1011,163.84,163.83,31.82]
[1748595014152,2.1144,163.92,163.75,62.0]
[1748595014153,38.52608807,163.9,163.8,31.82]
[1748595014346,6.70608807,163.87,163.8,31.82]
[1748595014548,6.70608807,163.87,163.77,33.9292]
[1748595014753,6.70608807,163.87,163.77,40.0327]
[1748595014954,0.04141425,163.84,163.8,0.03992821]
[1748595015651,6.1023,163.81,163.8,0.03992821]
[1748595020361,6.1023,163.81,163.8,2.821e-05]
[1748595026356,6.1044,163.76,163.72,31.82]
[1748595026659,31.82,163.82,163.72,31.82]
[1748595027353,0.0462949,163.79,163.75,0.04639078]
[1748595028455,6.1494949,163.79,163.75,6.15069078]
[1748595029262,6.1034,163.78,163.75,0.04639078]
[1748595029452,0.0462949,163.79,163.75,0.04639078]
[1748595030347,6.1041,163.76,163.75,0.04639078]
[1748595036062,31.84,163.78,163.69,31.84]
[1748595036266,6.70608807,163.77,163.69,31.84]
[1748595036464,6.70608807,163.77,163.66,689.10772496]
[1748595036660,6.70608807,163.77,163.66,683.00012496]
[1748595037159,6.1062,163.71,163.7,0.04570268]
[1748595037767,0.04460237,163.73,163.7,0.04570268]
[1748595038166,37.831,163.78,163.7,0.04570268]
[1748595038167,31.84,163.78,163.7,31.88570268]
[1748595038466,31.84,163.81,163.71,1.9591]
[1748595038666,6.1037,163.77,163.74,6.1046]
[1748595038966,31.84,163.81,163.72,2.1019]
[1748595039166,6.14623211,163.78,163.75,6.146702]
[1748595039360,0.04283211,163.78,163.75,0.042502]
[1748595039869,6.1041,163.76,163.75,0.042502]
[1748595040259,6.1041,163.76,163.75,2e-06]
[1748595043765,38.54608807,163.77,163.67,3.9615]
[1748595043964,38.54608807,163.77,163.67,35.7615]
[1748595044364,6.1064,163.7,163.67,35.7615]
[1748595044566,6.14849911,163.7,163.67,35.80718044]
[1748595045876,6.14849911,163.7,163.67,41.91458044]
[1748595046372,6.1067,163.69,163.67,35.80718044]
[1748595046875,6.14849911,163.7,163.67,41.91458044]
[1748595047167,0.04209911,163.7,163.67,35.80718044]
[1748595047561,0.04209911,163.7,163.68,6.1068]
[1748595047763,0.04209911,163.7,163.67,35.80718044]
[1748595048474,31.84,163.77,163.67,35.80718044]
[1748595048775,31.84,163.77,163.67,35.7615]
[1748595049674,6.1056,163.72,163.7,0.03957028]
[1748595050175,6.1053,163.73,163.7,6.14577028]
[1748595051474,6.1056,163.72,163.7,6.14577028]
[1748595051674,0.03893345,163.74,163.7,0.03957028]
[1748595052475,6.1053,163.73,163.7,6.14587028]
[1748595052677,0.03893345,163.74,163.7,0.03957028]
[1748595052876,6.14403345,163.74,163.71,6.1057]
[1748595053171,12.2027,163.84,163.72,31.8]
[1748595053471,6.1031,163.79,163.76,6.1038]
[1748595054170,6.14157583,163.79,163.76,6.14848231]
[1748595054577,6.1034,163.78,163.76,0.04468231]
[1748595055173,6.1034,163.78,163.76,6.14868231]
[1748595055373,6.1034,163.78,163.76,0.04468231]
[1748595055877,6.1034,163.78,163.76,6.14868231]
[1748595056475,6.1037,163.77,163.76,0.04468231]
[1748595057374,6.1037,163.77,163.57,10.82696337]
[1748595057375,0.03847583,163.79,163.66,649.22822496]
[1748595057571,38.50608807,163.81,163.67,44.51648807]
[1748595057979,38.50608807,163.81,163.71,6.1057]
[1748595058278,6.1049,163.74,163.71,37.9057]
[1748595058582,6.14577596,163.74,163.71,37.95047292]
[1748595059682,6.1053,163.73,163.71,31.84477292]
[1748595059884,0.04087596,163.74,163.71,31.84477292]
[1748595061081,0.04087596,163.74,163.73,6.1052]
[1748595061282,0.04087596,163.74,163.71,31.84477292]
[1748595062689,0.04087596,163.74,163.73,6.1052]
[1748595063592,0.04087596,163.74,163.72,6.1055]